bitfinex/quotes_ETHUSD_20240731
["timestamp","ask_amount","ask_price","bid_price","bid_amount"]
[1722398102987,1.90040379,3298.4,3298.1,1.124]
[1722398103573,1.90040379,3298.3,3298.1,1.124]
[1722398104538,4.05136278,3298.5,3298.1,1.124]
[1722398104740,1.90060362,3298.3,3298.1,1.124]
[1722398107918,7.08304278,3298.5,3298.1,1.124]
[1722398108066,1.90099715,3298.3,3298.1,1.124]
[1722398108767,1.90099715,3298.2,3298.1,1.124]
[1722398111164,3.0,3298.5,3298.1,1.124]
[1722398111360,1.90285971,3298.5,3298.4,3.03177]
[1722398111567,1.90285971,3298.7,3298.6,3.03158]
[1722398111810,3.031,3299.3,3298.6,4.15558]
[1722398112017,1.90302463,3298.9,3298.8,1.124]
[1722398112420,5.2513254,3299.1,3298.6,1.124]
[1722398112567,1.9027414,3298.8,3298.6,1.124]
[1722398112881,1.9027414,3298.7,3298.3,1.124]
[1722398113063,1.90264524,3298.6,3298.3,1.124]
[1722398113401,1.90264524,3298.7,3298.3,1.124]
[1722398114018,1.90264524,3298.7,3298.3,4.15586]
[1722398114524,1.90272499,3298.7,3298.5,4.15561]
[1722398114683,1.90272499,3298.8,3298.6,2.3132]
[1722398115024,1.90272499,3298.8,3298.6,5.34477]
[1722398115179,1.90272499,3299.0,3298.8,3.0314]
[1722398115380,1.90272499,3299.1,3298.8,3.0314]
[1722398116118,1.90272499,3299.2,3298.8,3.0314]
[1722398116315,1.90272499,3299.1,3298.8,3.0314]
[1722398116513,1.90272499,3299.2,3298.8,3.0314]
[1722398116715,1.90272499,3299.2,3298.7,1.124]
[1722398117015,4.93375499,3299.2,3298.7,1.124]
[1722398117401,1.90272499,3299.2,3298.7,4.15547]
[1722398117606,0.20077967,3299.1,3298.7,4.15547]
[1722398119434,0.20077967,3299.1,3298.7,1.124]
[1722398119605,5.13438301,3299.1,3298.7,1.124]
[1722398119933,5.13438301,3299.1,3298.5,4.15566]
[1722398120097,3.03122,3299.0,3298.5,4.15566]
[1722398120744,0.20077967,3298.9,3298.5,1.124]
[1722398121096,3.03141,3298.8,3298.5,1.124]
[1722398121296,3.03141,3298.8,3298.4,2.3155]
[1722398121606,3.03122,3299.0,3298.4,5.34726]
[1722398121805,1.90058779,3298.9,3298.4,5.34726]
[1722398122055,0.20077967,3298.8,3298.4,2.3155]
[1722398122361,0.20077967,3298.8,3298.5,4.15561]
[1722398122695,4.93171779,3299.1,3298.6,3.03158]
[1722398122935,0.20077967,3298.7,3298.6,3.03158]
[1722398123109,1.90058779,3299.1,3298.6,3.03158]
[1722398123306,0.20077967,3298.7,3298.6,3.03158]
[1722398123516,1.9005697,3299.1,3298.6,3.03158]
[1722398123724,0.20077967,3298.7,3298.6,3.03158]
[1722398123933,1.9005697,3299.1,3298.6,3.03158]
[1722398124537,0.20077967,3299.0,3298.6,3.03158]
[1722398124825,0.20077967,3299.0,3298.5,4.15561]
[1722398125532,3.23200967,3299.0,3298.5,4.15561]
[1722398125833,2.10117609,3299.0,3298.5,4.15561]
[1722398126437,2.10117609,3299.0,3298.6,3.03158]
[1722398126655,0.20077967,3299.0,3298.7,1.124]
[1722398129367,0.20077967,3299.0,3298.5,4.15565]
[1722398129537,3.23199967,3299.0,3298.5,4.15565]
[1722398130651,3.23199967,3299.0,3298.5,1.124]
[1722398130978,5.13211459,3299.0,3298.5,1.124]
[1722398131551,3.23199967,3299.0,3298.5,1.124]
[1722398131754,5.13211466,3299.0,3298.5,1.124]
[1722398133442,3.03138,3298.9,3298.3,3.03182]
[1722398133692,0.2010314,3298.8,3298.3,4.1558]
[1722398133893,0.2010314,3298.8,3298.5,1.124]
[1722398134092,1.90011499,3299.0,3298.5,1.124]
[1722398134299,0.20102533,3298.7,3298.5,1.124]
[1722398134460,4.93117932,3299.0,3298.5,1.124]
[1722398134662,0.20102533,3298.9,3298.5,1.124]
[1722398136174,0.20102533,3298.9,3298.5,4.15567]
[1722398138196,4.93101192,3299.0,3298.5,4.15567]
[1722398138399,0.20099197,3298.8,3298.5,4.15567]
[1722398138563,4.93115192,3298.9,3298.5,1.124]
[1722398138758,0.20099197,3298.7,3298.5,1.124]
[1722398138965,1.89979192,3299.0,3298.5,1.124]
[1722398139263,1.89979192,3298.9,3298.5,1.124]
[1722398139463,0.20098893,3298.8,3298.5,1.124]
[1722398141513,0.20098893,3298.7,3298.5,1.124]
[1722398141981,1.90060132,3298.9,3298.5,1.124]
[1722398142181,0.20098893,3298.6,3298.5,1.124]
[1722398142579,1.90060132,3298.8,3298.5,1.124]
[1722398142780,0.20098893,3298.6,3298.5,1.124]
[1722398142980,1.90060132,3298.8,3298.5,1.124]
[1722398143198,0.20098893,3298.6,3298.5,1.124]
[1722398143781,1.90183621,3298.8,3298.5,4.15567]
[1722398143982,0.20098893,3298.6,3298.5,4.15567]
[1722398144208,1.90183621,3298.9,3298.5,4.15567]
[1722398144416,1.90184845,3298.9,3298.5,4.15567]
[1722398144721,0.20097377,3298.8,3298.5,4.15567]
[1722398144958,2.10297617,3298.8,3298.5,4.15567]
[1722398145936,0.20097377,3298.8,3298.7,4.15549]
[1722398146304,1.9020024,3299.0,3298.7,4.15549]
[1722398146611,0.20096164,3298.8,3298.7,4.15549]
[1722398146811,1.9020024,3298.9,3298.8,3.0314]
[1722398147197,1.9020024,3299.1,3298.9,5.33821]
[1722398147396,1.9020024,3299.1,3299.0,1.124]
[1722398147617,3.0,3299.4,3299.0,1.124]
[1722398147822,1.90257082,3299.2,3299.0,1.124]
[1722398148037,1.90257082,3299.1,3299.0,1.124]
[1722398150842,1.90257082,3299.1,3299.0,4.15522]
[1722398150980,1.90373303,3299.2,3299.0,4.15522]
[1722398151520,1.90400413,3299.1,3299.0,4.15522]
[1722398152649,1.90400413,3299.1,3299.0,1.124]
[1722398154647,2.22133815,3299.3,3299.0,1.124]
[1722398155732,2.22133815,3299.3,3298.8,4.15535]
[1722398155933,1.90500226,3299.0,3298.8,4.15535]
[1722398156508,1.90500226,3298.9,3298.8,4.15535]
[1722398157543,6.03087,3299.4,3298.8,4.15535]
[1722398157727,1.90550608,3298.9,3298.8,4.15535]
[1722398158618,6.03087,3299.4,3298.8,4.15535]
[1722398158619,1.90550608,3299.0,3298.8,4.15535]
[1722398159718,1.90507846,3299.0,3298.8,4.15535]
[1722398160456,2.22259154,3299.3,3298.8,4.15535]
[1722398160457,1.90507846,3298.9,3298.8,4.15535]
[1722398160942,6.03087,3299.4,3298.8,4.15535]
[1722398161153,1.90612928,3299.0,3298.9,3.03131]
[1722398161325,2.22381749,3299.3,3298.8,4.15535]
[1722398161326,3.0,3299.4,3299.0,3.03117]
[1722398161523,2.22343687,3299.3,3299.2,1.124]
[1722398161720,0.13193076,3299.3,3299.2,4.15503]
[1722398161920,0.13193076,3299.3,3299.2,7.18606]
[1722398162144,0.13193076,3299.3,3299.2,8.130316]
[1722398162554,0.3330046,3299.3,3299.2,8.130316]
[1722398162770,0.13193076,3299.3,3299.2,8.130316]
[1722398163530,0.13193076,3299.3,3299.2,5.099286]
[1722398164038,0.33319257,3299.3,3299.2,5.099286]
[1722398164246,0.13193076,3299.3,3299.2,5.099286]
[1722398164446,0.33319257,3299.3,3299.2,1.124]
[1722398164658,0.13193076,3299.3,3299.2,1.124]
[1722398164822,0.33319257,3299.3,3299.2,1.124]
[1722398166833,0.13193076,3299.3,3299.2,1.124]
[1722398167261,0.33319863,3299.3,3299.2,1.124]
[1722398167467,0.33319863,3299.3,3298.8,3.03136]
[1722398167662,1.90375189,3299.2,3298.8,4.15536]
[1722398168230,2.10501976,3299.1,3298.8,4.15536]
[1722398168726,0.20126787,3299.1,3298.8,4.15536]
[1722398168941,2.10501976,3299.1,3298.8,4.15536]
[1722398170041,0.20126787,3299.1,3298.8,4.15536]
[1722398170237,1.90331431,3299.1,3298.8,4.15536]
[1722398170667,0.20126787,3299.0,3298.8,4.15536]
[1722398173736,1.90435233,3299.1,3298.8,4.15536]
[1722398174063,0.20129513,3298.9,3298.8,3.03136]
[1722398174264,0.20129513,3298.9,3298.8,4.15539]
[1722398174467,1.90447969,3299.1,3298.8,4.15539]
[1722398174666,0.20129513,3299.0,3298.8,4.15539]
[1722398176434,0.20129513,3299.0,3298.6,5.34608]
[1722398176435,0.20129513,3299.0,3298.7,3.03149]
[1722398176631,0.20129513,3299.0,3298.8,1.124]
[1722398176838,2.10569488,3299.0,3298.8,1.124]
[1722398177038,1.90439975,3298.9,3298.8,1.124]
[1722398177251,2.10569488,3298.9,3298.8,1.124]
[1722398180173,2.10582778,3298.9,3298.8,1.124]
[1722398181553,0.20129513,3298.9,3298.8,1.124]
[1722398181951,1.90461766,3298.9,3298.8,1.124]
[1722398182271,2.10591279,3298.9,3298.8,4.1554]
[1722398183157,0.20129513,3298.9,3298.8,4.1554]
[1722398183897,0.20129513,3298.9,3298.8,7.1868]
[1722398184039,1.90503491,3299.2,3298.8,8.13693]
[1722398184245,1.90503491,3299.2,3299.0,4.15517]
[1722398184475,0.20129513,3299.1,3299.0,4.15517]
[1722398185745,0.20129513,3299.1,3299.0,1.124]
[1722398186055,1.90501402,3299.1,3299.0,1.124]
[1722398186287,2.10630915,3299.1,3299.0,1.124]
[1722398186752,2.10642421,3299.1,3299.0,1.124]
[1722398187085,0.20129513,3299.1,3299.0,1.124]
[1722398188866,2.10642421,3299.1,3299.0,1.124]
[1722398190095,2.10680544,3299.1,3299.0,1.124]
[1722398191364,0.20129513,3299.1,3299.0,4.15522]
[1722398191677,2.10680544,3299.1,3299.0,4.15522]
[1722398192198,0.20129513,3299.1,3299.0,4.15522]
[1722398192399,2.1071918,3299.1,3299.0,4.15522]
[1722398192613,2.22309536,3299.4,3299.0,4.15522]
[1722398192896,2.10725385,3299.1,3299.0,4.15522]
[1722398193053,1.90595872,3299.1,3299.0,4.15522]
[1722398193252,0.20129513,3299.1,3299.0,4.15522]
[1722398193454,2.22362673,3299.4,3299.0,4.15522]
[1722398193653,1.90600173,3299.1,3299.0,4.15522]
[1722398193894,0.20129513,3299.1,3299.0,4.15522]
[1722398194056,1.90602131,3299.1,3299.0,4.15522]
[1722398194251,2.22369153,3299.3,3299.0,4.15522]
[1722398194896,1.90606461,3299.1,3299.0,4.15522]
[1722398195189,1.90606461,3299.2,3299.1,3.03112]
[1722398195398,1.90606461,3299.3,3299.1,3.03112]
[1722398195559,1.90606461,3299.3,3299.2,4.15503]
[1722398195762,1.90605212,3299.3,3299.2,4.15503]
[1722398196653,1.90599102,3299.3,3299.2,4.15503]
[1722398198602,1.90599102,3299.3,3299.2,1.124]
[1722398200103,1.90408451,3299.3,3299.2,1.124]
[1722398200282,1.90408485,3299.3,3299.2,1.124]
[1722398203112,1.90408485,3299.4,3299.2,1.124]
[1722398203312,0.545307,3299.6,3299.2,1.124]
[1722398203514,1.90346365,3299.3,3299.2,1.124]
[1722398203880,1.90311886,3299.3,3299.2,1.124]
[1722398205813,1.90312948,3299.3,3299.2,1.124]
[1722398207501,2.10450948,3299.3,3299.2,1.124]
[1722398210025,0.20138,3299.3,3299.2,1.124]
[1722398210388,2.22032652,3299.5,3299.2,1.124]
[1722398210696,3.04848117,3299.5,3299.2,1.124]
[1722398210902,0.20136487,3299.4,3299.2,1.124]
[1722398213006,1.90282166,3299.3,3299.2,1.124]
[1722398213395,5.25100652,3299.6,3299.2,1.124]
[1722398213594,0.20136487,3299.3,3299.2,1.124]
[1722398214225,5.25070183,3299.6,3299.2,1.124]
[1722398214405,0.20136487,3299.3,3299.2,1.124]
[1722398214733,0.20068336,3299.3,3299.2,1.124]
[1722398215022,1.90293177,3299.3,3299.2,1.124]
[1722398215226,2.10361513,3299.3,3299.2,1.124]
[1722398215427,0.20068336,3299.3,3299.2,1.124]
[1722398215726,6.01802201,3299.6,3299.2,1.124]
[1722398215929,1.90279289,3299.3,3299.2,1.124]
[1722398216291,2.10347625,3299.3,3299.2,1.124]
[1722398216516,0.20068336,3299.3,3299.2,1.124]
[1722398216727,1.90277979,3299.3,3299.2,1.124]
[1722398216927,2.10346315,3299.3,3299.2,1.124]
[1722398217933,2.10360161,3299.3,3299.2,1.124]
[1722398218629,0.20068336,3299.3,3299.2,1.124]
[1722398218924,2.21990976,3299.5,3299.2,1.124]
[1722398219127,0.20068336,3299.4,3299.2,1.124]
[1722398222925,3.0312,3299.1,3298.6,3.375]
[1722398223118,1.90237966,3298.7,3298.6,1.124]
[1722398223424,2.10303571,3298.7,3298.6,1.124]
[1722398224310,0.20065605,3298.7,3298.3,7.35796859]
[1722398224636,1.90224532,3298.6,3298.3,1.124]
[1722398224797,2.10278316,3298.6,3298.3,1.124]
[1722398224996,2.10278316,3298.6,3298.5,1.124]
[1722398225203,0.20053784,3298.6,3298.5,1.124]
[1722398225402,2.10278316,3298.6,3298.4,3.03174]
[1722398225611,2.10278316,3298.6,3298.2,2.3982]
[1722398225612,0.20053784,3298.6,3298.5,1.124]
[1722398225802,1.90178758,3298.6,3298.5,1.124]
[1722398226002,2.10224054,3298.6,3298.5,1.124]
[1722398226199,2.10224054,3298.6,3298.3,3.03185]
[1722398226400,1.90178758,3298.5,3298.3,3.03185]
[1722398226608,1.90178758,3298.6,3298.4,1.124]
[1722398227435,1.90178758,3298.7,3298.4,1.124]
[1722398227648,1.90178758,3298.7,3298.3,3.03185]
[1722398227649,1.90178758,3298.7,3298.6,1.124]
[1722398227854,3.03134,3298.9,3298.6,1.124]
[1722398228016,4.09551222,3298.9,3298.6,1.124]
[1722398228217,1.90102557,3298.7,3298.6,1.124]
[1722398229017,1.9008719,3298.7,3298.6,1.124]
[1722398229218,4.09551222,3298.9,3298.4,1.124]
[1722398229219,6.3131961,3298.9,3298.4,1.124]
[1722398229518,1.9008352,3298.7,3298.4,1.124]
[1722398230130,1.9008352,3298.7,3298.4,4.15577]
[1722398230640,1.9008352,3298.7,3298.4,1.124]
[1722398230846,1.9008352,3298.8,3298.4,1.124]
[1722398231220,1.9008352,3298.8,3298.4,4.15577]
[1722398231657,1.9008352,3298.8,3298.4,1.124]
[1722398232150,1.9008352,3298.7,3298.4,1.124]
[1722398232448,1.89935854,3298.7,3298.4,1.124]
[1722398232842,3.03132,3298.9,3298.4,1.124]
[1722398233166,1.89891284,3298.7,3298.4,1.124]
[1722398233791,3.03159,3298.6,3298.4,1.124]
[1722398234068,1.89891284,3298.6,3298.2,1.124]
[1722398234631,1.89824252,3298.6,3298.2,1.124]
[1722398235575,3.03143,3298.8,3298.2,1.124]
[1722398235878,1.89817428,3298.7,3298.2,1.124]
[1722398236681,1.89817428,3298.7,3298.2,4.15595]
[1722398236838,1.89817428,3298.7,3298.4,1.124]
[1722398237447,0.20036806,3298.6,3298.4,1.124]
[1722398238342,4.92960428,3298.8,3298.4,1.124]
[1722398238574,2.09854234,3298.7,3298.4,1.124]
[1722398239483,0.20036806,3298.7,3298.4,1.124]
[1722398239850,4.92960428,3298.8,3298.4,1.124]
[1722398239851,1.89817428,3298.8,3298.4,1.124]
[1722398240055,1.89817428,3298.9,3298.6,1.124]
[1722398241153,4.89817428,3299.0,3298.6,1.124]
[1722398241360,1.89817428,3299.2,3298.8,1.124]
[1722398241586,1.89817428,3299.2,3299.0,1.124]
[1722398242292,1.89824432,3299.3,3299.0,1.124]
[1722398242686,3.03089,3299.4,3299.0,1.124]
[1722398242893,1.89820994,3299.5,3299.2,4.15503]
[1722398243072,1.89820994,3299.5,3299.4,1.124]
[1722398243268,1.89820994,3299.6,3299.4,1.124]
[1722398243607,3.03059,3299.7,3299.2,1.124]
[1722398243780,1.89842227,3299.4,3299.2,1.124]
[1722398244670,1.89862719,3299.4,3299.2,1.124]
[1722398245368,3.0,3299.6,3299.2,1.124]
[1722398245728,1.89777217,3299.4,3299.2,1.124]
[1722398246705,1.89777217,3299.5,3299.2,1.124]
[1722398248707,3.0,3299.6,3299.2,1.124]
[1722398249031,1.8976123,3299.5,3299.2,1.124]
[1722398249813,1.8976123,3299.6,3299.2,1.124]
[1722398250134,1.8976123,3299.5,3299.2,1.124]
[1722398251074,1.8976123,3299.6,3299.2,1.124]
[1722398251309,1.8976123,3299.5,3299.2,1.124]
[1722398252077,6.03064,3299.7,3299.2,1.124]
[1722398252332,1.89764061,3299.5,3299.2,1.124]
[1722398252835,1.89762422,3299.5,3299.2,1.124]
[1722398252975,0.20034985,3299.4,3299.2,1.124]
[1722398253579,2.09797407,3299.4,3299.2,1.124]
[1722398254797,2.09801164,3299.4,3299.2,1.124]
[1722398255127,0.20034985,3299.4,3299.2,1.124]
[1722398255294,2.09801164,3299.4,3299.2,1.124]
[1722398255497,2.09805474,3299.4,3299.2,1.124]
[1722398260278,0.20034985,3299.4,3299.2,1.124]
[1722398260479,0.20034985,3299.4,3299.2,4.15503]
[1722398261986,0.20034985,3299.4,3299.2,1.124]
[1722398262505,0.20034985,3299.3,3299.2,1.47036]
[1722398262831,1.89801223,3299.6,3299.2,4.50134]
[1722398262991,0.20034985,3299.3,3299.2,4.15498]
[1722398263176,1.89801223,3299.6,3299.2,4.15498]
[1722398263377,1.89801223,3299.8,3299.4,1.124]
[1722398263582,1.89801223,3299.9,3299.7,1.124]
[1722398263811,1.89801223,3300.0,3299.7,1.124]
[1722398264613,1.89801223,3300.1,3300.0,2.3949]
[1722398264777,1.89776637,3300.2,3300.0,2.3949]
[1722398265219,1.89776637,3300.3,3300.0,2.3949]
[1722398265415,0.529957,3300.5,3300.0,2.3949]
[1722398265615,1.89783674,3300.3,3300.0,2.3949]
[1722398267622,3.559807,3300.5,3300.0,2.3949]
[1722398267623,0.19711639,3300.2,3300.0,2.3949]
[1722398267809,1.89783674,3300.4,3300.0,2.3949]
[1722398268214,0.19711639,3300.3,3300.0,2.3949]
[1722398268410,0.19711639,3300.3,3299.9,1.124]
[1722398268615,3.22713639,3300.3,3299.9,1.124]
[1722398268814,3.22713639,3300.3,3299.8,5.29338]
[1722398268815,3.03014,3300.2,3299.8,2.2629]
[1722398269221,3.22734639,3300.1,3299.7,1.124]
[1722398269412,3.03034,3300.0,3299.5,6.45274]
[1722398269729,3.03034,3300.0,3299.5,7.401107]
[1722398269934,0.19711639,3299.9,3299.5,7.401107]
[1722398270330,4.92646705,3300.2,3299.5,7.401107]
[1722398270532,0.19711639,3299.8,3299.5,7.401107]
[1722398270706,3.03022,3300.1,3299.5,7.401107]
[1722398271031,0.19711639,3299.7,3299.5,3.422]
[1722398271232,3.03031,3300.0,3299.5,6.45274]
[1722398271434,0.19711639,3299.6,3299.5,3.422]
[1722398271635,3.03041,3299.9,3299.5,3.422]
[1722398271814,0.19711639,3299.8,3299.5,3.422]
[1722398272017,3.03028,3300.1,3299.5,4.370377]
[1722398272328,0.19711639,3300.0,3299.5,4.370377]
[1722398272841,3.22741639,3300.0,3299.5,4.370377]
[1722398274033,3.03039,3299.9,3299.5,1.124]
[1722398274537,0.19711639,3299.8,3299.3,6.59533]
[1722398275912,0.19711639,3299.8,3299.5,1.124]
[1722398280747,4.92664785,3299.9,3299.5,1.124]
[1722398281253,0.19754687,3299.8,3299.5,1.124]
[1722398281918,0.19754687,3299.8,3299.4,1.124]
[1722398282462,2.09458778,3299.8,3299.4,1.124]
[1722398283320,3.03092,3299.4,3298.9,2.4358]
[1722398283634,3.22846261,3299.3,3298.9,3.5598]
[1722398283820,5.12550352,3299.3,3298.9,3.5598]
[1722398284044,5.12603274,3299.3,3298.9,3.5598]
[1722398284441,0.19752261,3299.3,3298.9,6.59105]
[1722398284780,0.19752261,3299.3,3299.1,1.124]
[1722398285329,4.92879309,3299.5,3299.1,1.124]
[1722398285534,0.19744078,3299.2,3299.1,1.124]
[1722398285733,1.89801309,3299.4,3299.1,1.124]
[1722398285986,0.19744078,3299.2,3299.1,1.124]
[1722398286131,1.89801309,3299.4,3299.1,1.124]
[1722398286329,0.19744078,3299.2,3299.1,4.15512]
[1722398286572,1.89801309,3299.5,3299.1,5.2135572]
[1722398286790,0.19744078,3299.2,3299.1,3.03112]
[1722398286934,1.89801309,3299.5,3299.1,4.15512]
[1722398287133,1.89801309,3299.5,3299.3,1.124]
[1722398287874,1.89801309,3299.5,3299.3,3.5771]
[1722398288032,1.89896859,3299.5,3299.3,3.5771]
[1722398291278,6.03055,3299.8,3299.3,3.5771]
[1722398291434,1.90019536,3299.5,3299.3,3.5771]
[1722398291856,1.90026862,3299.5,3299.3,3.5771]
[1722398293491,1.90026862,3299.4,3299.3,3.5771]
[1722398293793,1.90028706,3299.4,3298.9,5.28765]
[1722398293996,1.90028706,3299.4,3299.0,1.124]
[1722398294213,1.90028706,3299.3,3299.0,1.124]
[1722398296767,1.89995773,3299.3,3299.0,1.124]
[1722398297456,0.19727304,3299.2,3299.0,1.124]
[1722398298568,0.19727304,3299.2,3299.1,3.03112]
[1722398298771,0.19727304,3299.2,3299.1,3.9754]
[1722398299006,1.89995644,3299.4,3299.1,3.9754]
[1722398299392,0.19727304,3299.3,3299.1,3.9754]
[1722398300543,0.19727304,3299.3,3299.2,6.62693]
[1722398300888,1.89995644,3299.6,3299.2,6.62693]
[1722398300889,1.89995644,3299.6,3299.3,3.0309]
[1722398301088,1.89995644,3299.6,3299.4,1.124]
[1722398301355,3.0,3299.8,3299.4,1.124]
[1722398301494,1.90065062,3299.6,3299.4,1.124]
[1722398301891,3.0,3299.8,3299.4,1.124]
[1722398302093,1.90065421,3299.6,3299.4,1.124]
[1722398304434,1.90065421,3299.7,3299.4,1.124]
[1722398304749,5.47123,3300.3,3299.5,3.03075]
[1722398304948,1.90103121,3299.9,3299.4,1.124]
[1722398305168,2.4412,3300.3,3299.4,4.15479]
[1722398305169,1.90103121,3299.8,3299.4,4.15479]
[1722398305317,1.90103121,3299.9,3299.6,1.124]
[1722398305519,5.47127,3300.3,3299.6,6.53406]
[1722398305520,1.90103121,3300.0,3299.6,6.53406]
[1722398305733,1.90103121,3299.9,3299.6,3.5034]
[1722398306736,1.90103121,3299.9,3299.6,2.3794]
[1722398306937,1.90103121,3299.8,3299.5,3.03075]
[1722398308191,1.8997824,3299.8,3299.5,3.03075]
[1722398308693,1.8997824,3299.8,3299.4,3.6035]
[1722398308858,1.8997824,3299.7,3299.4,3.6035]
[1722398309688,1.8997824,3299.7,3299.4,6.63434]
[1722398309891,1.8997824,3299.7,3299.4,7.600872]
[1722398310191,1.8997824,3299.7,3299.4,4.570032]
[1722398310401,1.8997824,3299.7,3299.4,3.6035]
[1722398311498,3.0304,3299.9,3299.4,3.6035]
[1722398311656,1.90026997,3299.7,3299.4,3.6035]
[1722398311992,3.0304,3299.9,3299.4,3.6035]
[1722398312162,1.90042712,3299.7,3299.4,3.6035]
[1722398312549,0.19742158,3299.6,3299.4,3.6035]
[1722398314092,1.90074449,3299.7,3299.4,3.6035]
[1722398314297,0.19742158,3299.5,3299.4,3.6035]
[1722398314501,1.90074449,3299.6,3299.4,3.6035]
[1722398314649,0.19742158,3299.5,3299.4,3.6035]
[1722398315053,1.90087611,3299.7,3299.4,3.6035]
[1722398315376,0.19742158,3299.6,3299.3,3.03086]
[1722398315573,2.09829769,3299.6,3299.3,4.15486]
[1722398315953,0.19742158,3299.6,3299.3,4.15486]
[1722398316149,0.19742158,3299.6,3299.3,7.18573]
[1722398316450,0.19742158,3299.6,3299.3,5.111843]
[1722398316651,0.19742158,3299.6,3299.4,3.03084]
[1722398317851,0.19742158,3299.6,3299.5,1.124]
[1722398318939,1.90103638,3299.7,3299.5,1.124]
[1722398319232,0.19742158,3299.6,3299.5,4.15476]
[1722398319404,0.19742158,3299.6,3299.5,4.9690203]
[1722398321388,0.19742158,3299.6,3299.5,7.4404203]
[1722398322096,3.03021,3300.1,3299.5,7.4404203]
[1722398322298,1.90168407,3299.8,3299.6,3.03065]
[1722398322883,1.90168407,3299.9,3299.8,3.03048]
[1722398323237,1.90168407,3300.0,3299.8,3.03048]
[1722398323749,1.90168407,3300.0,3299.9,3.03039]
[1722398323956,1.90168407,3300.2,3300.0,3.0303]
[1722398324239,1.90168407,3300.4,3300.1,4.15421]
[1722398324981,1.90090375,3300.4,3300.1,4.15421]
[1722398326151,1.90090375,3300.5,3300.3,1.124]
[1722398326288,1.90090375,3300.7,3300.6,3.02975]
[1722398326657,1.90090375,3300.7,3300.3,2.41089719]
[1722398326658,1.90090375,3301.1,3300.7,6.50394]
[1722398326799,1.90090375,3301.1,3300.9,4.15341]
[1722398327130,1.90090375,3301.3,3300.9,4.15341]
[1722398327333,1.90090375,3301.4,3300.9,4.15341]
[1722398327545,1.90090375,3301.3,3300.9,4.15341]
[1722398327722,0.19763068,3301.3,3300.9,4.15341]
[1722398328405,5.47022035,3301.5,3300.9,4.15341]
[1722398328599,0.19763068,3301.2,3300.9,4.15341]
[1722398328930,3.02912,3301.3,3300.9,1.124]
[1722398329131,0.19763068,3301.1,3300.9,1.124]
[1722398329349,3.02912,3301.3,3300.9,1.124]
[1722398329524,0.19763068,3301.0,3300.9,1.124]
[1722398329834,4.92737635,3301.4,3300.9,1.124]
[1722398330323,3.02901,3301.4,3300.9,1.124]
[1722398330621,0.19763068,3301.3,3300.9,1.124]
[1722398330821,3.22676068,3301.3,3300.9,1.124]
[1722398333425,3.22676068,3301.3,3300.9,1.774389]
[1722398336254,0.19763068,3301.3,3300.9,1.774389]
[1722398336461,6.05796,3301.5,3300.9,1.774389]
[1722398336619,0.19788212,3301.4,3300.9,1.774389]
[1722398337057,0.19788212,3301.4,3300.9,4.803849]
[1722398337260,0.19788212,3301.4,3301.1,3.4446]
[1722398337555,1.89443642,3301.9,3301.3,1.124]
[1722398337763,7.26806016,3302.4,3301.3,1.124]
[1722398337764,9.16249658,3302.4,3301.8,4.15264]
[1722398337939,7.28547642,3302.5,3302.1,1.124]
[1722398338120,7.28547642,3302.5,3301.9,1.124]
[1722398338121,3.39433364,3302.5,3301.9,1.124]
[1722398338570,1.03133364,3302.5,3302.1,1.124]
[1722398338762,3.02796,3302.6,3302.1,1.124]
[1722398338942,3.02816,3302.4,3302.1,1.124]
[1722398339147,3.0282,3302.3,3301.9,1.124]
[1722398340654,3.0282,3302.3,3301.5,3.02888]
[1722398340855,3.0284,3302.1,3301.6,1.124]
[1722398341867,3.02856,3301.9,3301.4,2.4501]
[1722398342073,6.05684,3302.1,3301.4,7.15103]
[1722398342216,3.02846,3302.0,3301.6,1.124]
[1722398342663,0.19167928,3301.9,3301.6,1.124]
[1722398342972,3.02795,3302.6,3301.8,1.124]
[1722398343196,3.02801,3302.5,3302.1,1.124]
[1722398343781,3.02801,3302.5,3301.9,4.15253]
[1722398344122,3.02815,3302.4,3301.9,1.124]
[1722398344858,3.02802,3302.5,3301.9,4.15255]
[1722398345370,3.02793,3302.6,3302.0,3.02846]
[1722398345726,6.05555,3302.8,3302.1,6.48696]
[1722398345931,3.0,3302.7,3302.1,6.48696]
[1722398346332,6.02782,3302.7,3302.1,6.48696]
[1722398346756,3.02746,3303.1,3302.3,4.15217]
[1722398347065,3.02746,3303.1,3302.5,4.15194]
[1722398348052,3.02755,3303.0,3302.5,1.124]
[1722398348684,3.02742,3303.2,3302.5,4.15197]
[1722398348846,3.02742,3303.2,3302.6,3.0279]
[1722398349040,3.02742,3303.2,3302.7,3.4894]
[1722398349270,3.02719,3303.4,3302.8,3.02773]
[1722398349579,3.02728,3303.3,3302.7,2.3654]
[1722398349739,3.02719,3303.4,3302.7,2.3654]
[1722398349740,3.329909,3303.4,3302.7,2.3654]
[1722398350080,3.02729,3303.3,3302.7,2.3654]
[1722398350282,3.02739,3303.2,3302.7,2.3654]
[1722398350442,3.02757,3303.0,3302.4,2.2765]
[1722398350648,3.02797,3302.6,3302.0,2.2765]
[1722398350942,3.02802,3302.5,3302.0,2.2765]
[1722398351142,3.02801,3302.5,3302.0,2.2765]
[1722398351363,0.17753352,3302.4,3302.0,2.2765]
[1722398351569,0.17753352,3302.4,3302.0,5.30495]
[1722398351743,0.17753352,3302.4,3302.1,0.530495]
[1722398351939,3.02812,3302.4,3302.1,0.530495]
[1722398352259,0.17750305,3302.3,3302.0,2.2765]
[1722398352455,3.02812,3302.4,3302.0,2.2765]
[1722398352794,0.17750305,3302.3,3302.0,5.30494]
[1722398352944,0.17750305,3302.3,3302.1,0.530494]
[1722398353140,3.02792,3302.6,3302.1,0.530494]